[Event "*** Titled Tuesday Blitz"]
[Site "Chess.com"]
[Date "2021.02.02"]
[Round "9"]
[White "CheckThis4"]
[Black "LileKoridze"]
[Result "1-0"]
[WhiteElo "2563"]
[BlackElo "2374"]
[TimeControl "180+1"]
[EndTime "11:46:25 PST"]
[Termination "CheckThis4 won on time"]

1. d4 {[%clk 0:03:00.9]} 1... Nf6 {[%clk 0:02:59.3]} 2. Bg5 {[%clk 0:03:00.6]}
2... e6 {[%clk 0:02:59.3]} 3. e4 {[%clk 0:03:00.7]} 3... h6 {[%clk 0:02:56.1]}
4. Bxf6 {[%clk 0:03:00.6]} 4... Qxf6 {[%clk 0:02:55.8]} 5. c3 {[%clk 0:03:01.3]}
5... d5 {[%clk 0:02:53.4]} 6. Nd2 {[%clk 0:02:59.7]} 6... dxe4 {[%clk
0:02:52.9]} 7. Nxe4 {[%clk 0:02:59.1]} 7... Qd8 {[%clk 0:02:53.5]} 8. Nf3 {[%clk
0:02:58.5]} 8... Be7 {[%clk 0:02:52.3]} 9. Bd3 {[%clk 0:02:58.1]} 9... O-O
{[%clk 0:02:52]} 10. O-O {[%clk 0:02:58.1]} 10... Nd7 {[%clk 0:02:49.3]} 11. Qe2
{[%clk 0:02:57.2]} 11... c6 {[%clk 0:02:27.1]} 12. Rad1 {[%clk 0:02:53.5]} 12...
Qc7 {[%clk 0:02:25]} 13. Rfe1 {[%clk 0:02:52.1]} 13... Nf6 {[%clk 0:02:24.6]}
14. Ne5 {[%clk 0:02:49.3]} 14... Nd5 {[%clk 0:02:19.8]} 15. Bb1 {[%clk 0:02:34]}
15... b6 {[%clk 0:01:52.2]} 16. Qd3 {[%clk 0:02:30.7]} 16... f5 {[%clk
0:01:49.9]} 17. Ng3 {[%clk 0:02:12.1]} 17... Bg5 {[%clk 0:01:37.8]} 18. Nh5
{[%clk 0:02:00.4]} 18... Bd7 {[%clk 0:01:21.7]} 19. Ng6 {[%clk 0:01:16.5]} 19...
Rfe8 {[%clk 0:01:07.5]} 20. h4 {[%clk 0:01:10.2]} 20... Nf4 {[%clk 0:00:36.7]}
21. Nhxf4 {[%clk 0:00:57.9]} 21... Bxf4 {[%clk 0:00:36.9]} 22. a4 {[%clk
0:00:53.9]} 22... Bd6 {[%clk 0:00:35.5]} 23. Ba2 {[%clk 0:00:53.1]} 23... Kh7
{[%clk 0:00:34.7]} 24. Ne5 {[%clk 0:00:49]} 24... Bc8 {[%clk 0:00:30.5]} 25. g4
{[%clk 0:00:44.6]} 25... Rf8 {[%clk 0:00:25.4]} 26. Re3 {[%clk 0:00:39.7]} 26...
Qe7 {[%clk 0:00:20.6]} 27. h5 {[%clk 0:00:30.5]} 27... Qg5 {[%clk 0:00:19.7]}
28. Rg3 {[%clk 0:00:28.4]} 28... Bb7 {[%clk 0:00:16.3]} 29. Rf1 {[%clk
0:00:24.3]} 29... Rad8 {[%clk 0:00:10.7]} 30. f4 {[%clk 0:00:22.1]} 30... Qf6
{[%clk 0:00:05.5]} 31. g5 {[%clk 0:00:20.6]} 31... Qe7 {[%clk 0:00:05.8]} 32.
Ng6 {[%clk 0:00:18.6]} 32... Qc7 {[%clk 0:00:05.9]} 33. Nxf8+ {[%clk 0:00:18]}
33... Rxf8 {[%clk 0:00:06.8]} 34. Bxe6 {[%clk 0:00:17.7]} 34... Bxf4 {[%clk
0:00:07]} 35. Bxf5+ {[%clk 0:00:17.6]} 35... Kh8 {[%clk 0:00:06.9]} 36. Rgf3
{[%clk 0:00:17.3]} 36... Bxg5 {[%clk 0:00:06.9]} 37. Bg6 {[%clk 0:00:17.6]}
37... Rxf3 {[%clk 0:00:03.4]} 38. Qxf3 {[%clk 0:00:17.5]} 38... Bf6 {[%clk
0:00:04.1]} 39. Re1 {[%clk 0:00:16.3]} 39... Be7 {[%clk 0:00:01.3]} 40. Qe3
{[%clk 0:00:14.5]} 40... Qd6 {[%clk 0:00:01.2]} 41. Re2 {[%clk 0:00:12]} 1-0

[Event "*** Titled Tuesday Blitz"]
[Site "Chess.com"]
[Date "2021.02.02"]
[Round "9"]
[White "jacky72"]
[Black "KononenkoD"]
[Result "1-0"]
[WhiteElo "2683"]
[BlackElo "2529"]
[TimeControl "180+1"]
[EndTime "11:46:28 PST"]
[Termination "jacky72 won on time"]

1. d4 {[%clk 0:03:00.9]} 1... Nf6 {[%clk 0:02:59.2]} 2. c4 {[%clk 0:03:00.7]}
2... c5 {[%clk 0:02:59.8]} 3. d5 {[%clk 0:03:00.7]} 3... b5 {[%clk 0:03:00]} 4.
Qc2 {[%clk 0:03:01]} 4... g6 {[%clk 0:02:59.3]} 5. e4 {[%clk 0:03:00.3]} 5... d6
{[%clk 0:02:59.4]} 6. cxb5 {[%clk 0:03:00]} 6... a6 {[%clk 0:02:58]} 7. a4
{[%clk 0:02:58.3]} 7... Bg7 {[%clk 0:02:58.1]} 8. Ra3 {[%clk 0:02:56.7]} 8...
O-O {[%clk 0:02:58.5]} 9. Nc3 {[%clk 0:02:56.9]} 9... e6 {[%clk 0:02:58.3]} 10.
dxe6 {[%clk 0:02:53]} 10... fxe6 {[%clk 0:02:57.8]} 11. Nf3 {[%clk 0:02:53.2]}
11... Bb7 {[%clk 0:02:54.9]} 12. Be2 {[%clk 0:02:48.8]} 12... d5 {[%clk
0:02:44.6]} 13. exd5 {[%clk 0:02:47.2]} 13... exd5 {[%clk 0:02:44.3]} 14. O-O
{[%clk 0:02:47.6]} 14... d4 {[%clk 0:02:36]} 15. Nb1 {[%clk 0:02:42.2]} 15...
Nbd7 {[%clk 0:02:31.8]} 16. bxa6 {[%clk 0:02:40.4]} 16... Be4 {[%clk 0:02:24.4]}
17. Qc4+ {[%clk 0:02:34.1]} 17... Kh8 {[%clk 0:02:18.3]} 18. Nbd2 {[%clk
0:02:32.1]} 18... Bd5 {[%clk 0:02:10.8]} 19. Qc2 {[%clk 0:02:26.9]} 19... Ng4
{[%clk 0:01:44.6]} 20. h3 {[%clk 0:02:21.8]} 20... Nge5 {[%clk 0:01:44.6]} 21.
Nxe5 {[%clk 0:02:22.1]} 21... Nxe5 {[%clk 0:01:34.4]} 22. Nc4 {[%clk 0:02:03.4]}
22... Rc8 {[%clk 0:00:42.4]} 23. Nxe5 {[%clk 0:01:51.6]} 23... Bxe5 {[%clk
0:00:43.3]} 24. Bh6 {[%clk 0:01:48.6]} 24... Rf7 {[%clk 0:00:36.6]} 25. f4
{[%clk 0:01:47.5]} 25... Bb8 {[%clk 0:00:30.9]} 26. Bc4 {[%clk 0:01:39.3]} 26...
Ba7 {[%clk 0:00:29.8]} 27. Bg5 {[%clk 0:01:35.1]} 27... Qd6 {[%clk 0:00:28]} 28.
Re1 {[%clk 0:01:27.7]} 28... Kg8 {[%clk 0:00:27.1]} 29. Rg3 {[%clk 0:01:15.6]}
29... Rcf8 {[%clk 0:00:19]} 30. b3 {[%clk 0:01:14.9]} 30... Rc8 {[%clk
0:00:11.6]} 31. Bxd5 {[%clk 0:01:09.5]} 31... Qxd5 {[%clk 0:00:11.5]} 32. Qc4
{[%clk 0:01:10.4]} 32... Qxc4 {[%clk 0:00:10.6]} 33. bxc4 {[%clk 0:01:11.3]}
33... Rf5 {[%clk 0:00:09.7]} 34. Re7 {[%clk 0:01:10.1]} 34... Rf7 {[%clk
0:00:10.2]} 35. Rxf7 {[%clk 0:01:08.9]} 35... Kxf7 {[%clk 0:00:11.1]} 36. Rb3
{[%clk 0:01:09.4]} 36... Rc7 {[%clk 0:00:11.2]} 37. Bd8 {[%clk 0:01:05.5]} 37...
Rd7 {[%clk 0:00:10.6]} 38. Bb6 {[%clk 0:01:05.8]} 38... Bxb6 {[%clk 0:00:07.5]}
39. Rxb6 {[%clk 0:01:05.7]} 39... d3 {[%clk 0:00:08]} 40. Rb1 {[%clk 0:00:57.3]}
40... d2 {[%clk 0:00:06.3]} 41. Rd1 {[%clk 0:00:57.2]} 41... Ke6 {[%clk
0:00:06.5]} 42. Kf2 {[%clk 0:00:55.7]} 42... Ra7 {[%clk 0:00:05.6]} 43. Rxd2
{[%clk 0:00:55]} 43... Rxa6 {[%clk 0:00:06.5]} 44. Rd5 {[%clk 0:00:54.9]} 44...
Rxa4 {[%clk 0:00:06.3]} 45. Rxc5 {[%clk 0:00:55.3]} 45... Ra2+ {[%clk
0:00:06.7]} 46. Kf3 {[%clk 0:00:55.1]} 46... Ra3+ {[%clk 0:00:07.6]} 47. Kg4
{[%clk 0:00:53.1]} 47... h5+ {[%clk 0:00:06.7]} 48. Kh4 {[%clk 0:00:51.5]} 48...
Ra2 {[%clk 0:00:05.4]} 49. g4 {[%clk 0:00:50.3]} 49... hxg4 {[%clk 0:00:05.2]}
50. hxg4 {[%clk 0:00:51.2]} 50... Kf6 {[%clk 0:00:04.3]} 51. Rc6+ {[%clk
0:00:51.3]} 51... Kf7 {[%clk 0:00:03.6]} 52. Kg5 {[%clk 0:00:52.2]} 52... Ra5+
{[%clk 0:00:03.9]} 53. c5 {[%clk 0:00:51.7]} 53... Rb5 {[%clk 0:00:04.5]} 54.
Rc7+ {[%clk 0:00:51.9]} 54... Ke6 {[%clk 0:00:04.5]} 55. Kxg6 {[%clk 0:00:52]}
55... Rb4 {[%clk 0:00:05.4]} 56. f5+ {[%clk 0:00:52.2]} 56... Kd5 {[%clk
0:00:05.4]} 57. g5 {[%clk 0:00:51.4]} 1-0

[Event "*** Titled Tuesday Blitz"]
[Site "Chess.com"]
[Date "2021.02.02"]
[Round "9"]
[White "Vesper2018"]
[Black "Tenamu"]
[Result "0-1"]
[WhiteElo "2577"]
[BlackElo "2416"]
[TimeControl "180+1"]
[EndTime "11:46:28 PST"]
[Termination "Tenamu won on time"]

1. e4 {[%clk 0:02:54.6]} 1... e6 {[%clk 0:02:54.7]} 2. d4 {[%clk 0:02:53.2]}
2... d5 {[%clk 0:02:54.7]} 3. e5 {[%clk 0:02:53.8]} 3... c5 {[%clk 0:02:54.6]}
4. c3 {[%clk 0:02:53.8]} 4... Nc6 {[%clk 0:02:55.1]} 5. Nf3 {[%clk 0:02:53.8]}
5... Qb6 {[%clk 0:02:55.3]} 6. Be2 {[%clk 0:02:53.4]} 6... cxd4 {[%clk
0:02:52.6]} 7. cxd4 {[%clk 0:02:53]} 7... Nh6 {[%clk 0:02:52.7]} 8. b3 {[%clk
0:02:47.4]} 8... Nf5 {[%clk 0:02:49.8]} 9. Bb2 {[%clk 0:02:47.1]} 9... Bb4+
{[%clk 0:02:49.5]} 10. Kf1 {[%clk 0:02:46]} 10... h5 {[%clk 0:02:48.9]} 11. Nc3
{[%clk 0:02:38]} 11... Bxc3 {[%clk 0:02:23.8]} 12. Bxc3 {[%clk 0:02:37.5]} 12...
Bd7 {[%clk 0:02:24.1]} 13. Rc1 {[%clk 0:02:21.7]} 13... Rg8 {[%clk 0:02:23.4]}
14. h4 {[%clk 0:02:20.9]} 14... Rc8 {[%clk 0:02:17.8]} 15. Bb2 {[%clk
0:02:12.3]} 15... Nce7 {[%clk 0:02:10]} 16. g3 {[%clk 0:02:05.8]} 16... Rxc1
{[%clk 0:02:06.7]} 17. Qxc1 {[%clk 0:02:05.7]} 17... Bb5 {[%clk 0:02:06.6]} 18.
Bxb5+ {[%clk 0:02:03]} 18... Qxb5+ {[%clk 0:02:07.5]} 19. Kg2 {[%clk 0:02:03.1]}
19... Kd7 {[%clk 0:02:07.7]} 20. Qd2 {[%clk 0:01:50.6]} 20... Rc8 {[%clk
0:02:06.9]} 21. Ng5 {[%clk 0:01:47.9]} 21... f6 {[%clk 0:02:04.4]} 22. exf6
{[%clk 0:01:43.3]} 22... gxf6 {[%clk 0:02:05.3]} 23. Nh7 {[%clk 0:01:43.5]}
23... Ng8 {[%clk 0:02:00.7]} 24. Re1 {[%clk 0:01:37.8]} 24... Qc6 {[%clk
0:01:49.4]} 25. Rc1 {[%clk 0:01:33.8]} 25... Qd6 {[%clk 0:01:43.9]} 26. Rxc8
{[%clk 0:01:20.5]} 26... Kxc8 {[%clk 0:01:44.8]} 27. Qe2 {[%clk 0:01:20.4]}
27... Ng7 {[%clk 0:01:32.7]} 28. Bc1 {[%clk 0:01:14.8]} 28... Qe7 {[%clk
0:01:30.1]} 29. Qf3 {[%clk 0:01:04.4]} 29... Qf7 {[%clk 0:01:26.1]} 30. Bf4
{[%clk 0:00:32.7]} 30... Nf5 {[%clk 0:01:22.2]} 31. Qc3+ {[%clk 0:00:31.6]}
31... Kd8 {[%clk 0:01:22]} 32. Nf8 {[%clk 0:00:28.1]} 32... Qxf8 {[%clk
0:01:08]} 33. Qc7+ {[%clk 0:00:26.5]} 33... Ke8 {[%clk 0:01:07.7]} 34. Qxb7
{[%clk 0:00:25.8]} 34... Qe7 {[%clk 0:01:07.3]} 35. Qb5+ {[%clk 0:00:18.8]}
35... Kf7 {[%clk 0:01:06.2]} 36. Qe2 {[%clk 0:00:19]} 36... Kg6 {[%clk
0:01:03.5]} 37. g4 {[%clk 0:00:18.9]} 37... Nxh4+ {[%clk 0:00:58.1]} 38. Kh3
{[%clk 0:00:18.5]} 38... Qh7 {[%clk 0:00:56.3]} 39. Qc2+ {[%clk 0:00:07.2]}
39... f5 {[%clk 0:00:55.1]} 40. g5 {[%clk 0:00:06.1]} 40... Nf3 {[%clk
0:00:53.1]} 41. Qc8 {[%clk 0:00:05.5]} 41... Nxg5+ {[%clk 0:00:50.5]} 42. Kh4
{[%clk 0:00:03.3]} 42... Nf3+ {[%clk 0:00:48.2]} 43. Kg3 {[%clk 0:00:03.6]}
43... Nxd4 {[%clk 0:00:48.6]} 44. Be5 {[%clk 0:00:03.8]} 44... f4+ {[%clk
0:00:47.7]} 45. Kxf4 {[%clk 0:00:03.6]} 45... Qf7+ {[%clk 0:00:47.3]} 46. Ke3
{[%clk 0:00:03.8]} 46... Qf3+ {[%clk 0:00:47.4]} 47. Kxd4 {[%clk 0:00:03.8]}
47... Qe4+ {[%clk 0:00:47.5]} 48. Kc3 {[%clk 0:00:03.9]} 48... Qxe5+ {[%clk
0:00:47.7]} 49. Kb4 {[%clk 0:00:04.2]} 49... Nf6 {[%clk 0:00:47.5]} 50. a4
{[%clk 0:00:02.4]} 50... d4 {[%clk 0:00:45.5]} 51. Qc1 {[%clk 0:00:01.4]} 51...
d3 {[%clk 0:00:43.8]} 0-1

[Event "*** Titled Tuesday Blitz"]
[Site "Chess.com"]
[Date "2021.02.02"]
[Round "9"]
[White "Manukyan_Artak"]
[Black "MariaFominykh"]
[Result "0-1"]
[WhiteElo "2398"]
[BlackElo "2288"]
[TimeControl "180+1"]
[EndTime "11:46:28 PST"]
[Termination "MariaFominykh won by resignation"]

1. e4 {[%clk 0:02:59.4]} 1... d6 {[%clk 0:02:57.7]} 2. d4 {[%clk 0:02:57.8]}
2... Nf6 {[%clk 0:02:57.5]} 3. f3 {[%clk 0:02:57.6]} 3... e5 {[%clk 0:02:56.4]}
4. d5 {[%clk 0:02:57.1]} 4... Be7 {[%clk 0:02:55]} 5. c4 {[%clk 0:02:57.6]} 5...
c6 {[%clk 0:02:53.3]} 6. Nc3 {[%clk 0:02:57.4]} 6... cxd5 {[%clk 0:02:52.9]} 7.
cxd5 {[%clk 0:02:57.1]} 7... a6 {[%clk 0:02:52.6]} 8. a4 {[%clk 0:02:55.4]} 8...
O-O {[%clk 0:02:47.7]} 9. a5 {[%clk 0:02:46.6]} 9... Nh5 {[%clk 0:02:33.3]} 10.
Be3 {[%clk 0:02:42.9]} 10... Bg5 {[%clk 0:02:25.1]} 11. Qd2 {[%clk 0:02:41.9]}
11... Bxe3 {[%clk 0:02:23.6]} 12. Qxe3 {[%clk 0:02:42.8]} 12... Nd7 {[%clk
0:01:55.9]} 13. Bd3 {[%clk 0:02:37.4]} 13... Nf4 {[%clk 0:01:48.2]} 14. Kf1
{[%clk 0:02:32.1]} 14... Nxd3 {[%clk 0:01:40]} 15. Qxd3 {[%clk 0:02:31.8]} 15...
b6 {[%clk 0:01:33.7]} 16. b4 {[%clk 0:02:10.4]} 16... bxa5 {[%clk 0:01:32.4]}
17. Rxa5 {[%clk 0:02:04.9]} 17... Qb6 {[%clk 0:01:29.6]} 18. Na2 {[%clk
0:01:58.9]} 18... Nc5 {[%clk 0:01:11]} 19. Qe3 {[%clk 0:01:53.5]} 19... f5
{[%clk 0:00:58.9]} 20. exf5 {[%clk 0:01:52.1]} 20... Bxf5 {[%clk 0:00:56.1]} 21.
Ne2 {[%clk 0:01:41.4]} 21... Nd7 {[%clk 0:00:45.2]} 22. Qxb6 {[%clk 0:01:39.8]}
22... Nxb6 {[%clk 0:00:44.3]} 23. Nec3 {[%clk 0:01:26.9]} 23... Rfc8 {[%clk
0:00:42.7]} 24. Ke2 {[%clk 0:01:23]} 24... Nc4 {[%clk 0:00:35.1]} 25. Ra4 {[%clk
0:01:22.1]} 25... Bc2 {[%clk 0:00:35.6]} 26. Ra1 {[%clk 0:00:59.1]} 26... Bxa4
{[%clk 0:00:34.4]} 27. Nxa4 {[%clk 0:01:00]} 27... Rab8 {[%clk 0:00:33.3]} 28.
Kd3 {[%clk 0:00:58.4]} 28... Nb6 {[%clk 0:00:32.4]} 29. N4c3 {[%clk 0:00:53.6]}
29... Rc7 {[%clk 0:00:26]} 30. Nc1 {[%clk 0:00:51.6]} 30... Rbc8 {[%clk
0:00:25.7]} 31. N1e2 {[%clk 0:00:51.6]} 31... Ra8 {[%clk 0:00:17.8]} 32. Ng3
{[%clk 0:00:44.7]} 32... g6 {[%clk 0:00:17.2]} 33. Nge4 {[%clk 0:00:44.8]} 33...
Nc4 {[%clk 0:00:15.6]} 34. b5 {[%clk 0:00:41.7]} 34... a5 {[%clk 0:00:15.6]} 35.
Na4 {[%clk 0:00:38.6]} 35... Rb8 {[%clk 0:00:15]} 36. Rb1 {[%clk 0:00:38.6]}
36... Nb6 {[%clk 0:00:14]} 37. Nac3 {[%clk 0:00:33.7]} 37... a4 {[%clk
0:00:13.1]} 38. Nxd6 {[%clk 0:00:33.1]} 38... Rd7 {[%clk 0:00:12.5]} 39. Nde4
{[%clk 0:00:32.8]} 39... Nxd5 {[%clk 0:00:12.5]} 40. Kc4 {[%clk 0:00:31.7]}
40... Rc8+ {[%clk 0:00:09.8]} 41. Nc5 {[%clk 0:00:24.4]} 41... Nxc3 {[%clk
0:00:08.3]} 42. Kxc3 {[%clk 0:00:24.7]} 42... Rxc5+ {[%clk 0:00:08]} 43. Kb4
{[%clk 0:00:25.6]} 43... Rc8 {[%clk 0:00:07.8]} 44. b6 {[%clk 0:00:25.5]} 44...
Rb7 {[%clk 0:00:07.7]} 45. Ka5 {[%clk 0:00:25.4]} 45... Ra8+ {[%clk 0:00:07.2]}
46. Kb5 {[%clk 0:00:25.3]} 46... Rxb6+ {[%clk 0:00:07.2]} 47. Kxb6 {[%clk
0:00:23.6]} 47... Rb8+ {[%clk 0:00:08.1]} 48. Ka5 {[%clk 0:00:24.5]} 48... Rxb1
{[%clk 0:00:08.2]} 49. Kxa4 {[%clk 0:00:25.4]} 49... Rb2 {[%clk 0:00:08.8]} 0-1

[Event "*** Titled Tuesday Blitz"]
[Site "Chess.com"]
[Date "2021.02.02"]
[Round "9"]
[White "woodhy"]
[Black "lamomiablanca"]
[Result "1-0"]
[WhiteElo "2453"]
[BlackElo "2282"]
[TimeControl "180+1"]
[EndTime "11:46:30 PST"]
[Termination "woodhy won by resignation"]

1. e4 {[%clk 0:03:00.9]} 1... c5 {[%clk 0:02:59.2]} 2. Nf3 {[%clk 0:03:00.2]}
2... Nc6 {[%clk 0:02:58.5]} 3. d4 {[%clk 0:02:56.2]} 3... cxd4 {[%clk
0:02:58.2]} 4. Nxd4 {[%clk 0:02:57.1]} 4... g6 {[%clk 0:02:58.6]} 5. c4 {[%clk
0:02:55.5]} 5... Nf6 {[%clk 0:02:57.2]} 6. Nc3 {[%clk 0:02:54.5]} 6... d6 {[%clk
0:02:57.4]} 7. Be3 {[%clk 0:02:54.1]} 7... Ng4 {[%clk 0:02:49.6]} 8. Nxc6 {[%clk
0:02:52.8]} 8... bxc6 {[%clk 0:02:49.5]} 9. Bg5 {[%clk 0:02:46.9]} 9... Qb6
{[%clk 0:02:35.2]} 10. Qd2 {[%clk 0:02:46]} 10... Bg7 {[%clk 0:02:33.6]} 11. Bh4
{[%clk 0:02:42.6]} 11... Be6 {[%clk 0:02:25.8]} 12. h3 {[%clk 0:02:41.4]} 12...
Ne5 {[%clk 0:02:24.3]} 13. b3 {[%clk 0:02:36.7]} 13... Qa5 {[%clk 0:01:58.6]}
14. Rc1 {[%clk 0:02:36.7]} 14... Nd7 {[%clk 0:01:41.4]} 15. Be2 {[%clk
0:02:28.7]} 15... Nf6 {[%clk 0:01:41.3]} 16. O-O {[%clk 0:02:25.6]} 16... O-O
{[%clk 0:01:41.3]} 17. Kh1 {[%clk 0:02:25.1]} 17... Rfe8 {[%clk 0:01:40.4]} 18.
f4 {[%clk 0:02:24.6]} 18... Rad8 {[%clk 0:01:23.6]} 19. Bd3 {[%clk 0:02:16.4]}
19... Bc8 {[%clk 0:01:22.5]} 20. f5 {[%clk 0:02:12.7]} 20... Nd7 {[%clk
0:01:19.4]} 21. fxg6 {[%clk 0:02:07.9]} 21... hxg6 {[%clk 0:01:19]} 22. Bb1
{[%clk 0:01:49.1]} 22... Qh5 {[%clk 0:01:17.4]} 23. Qf2 {[%clk 0:01:46.9]} 23...
Ne5 {[%clk 0:01:16.6]} 24. Bg3 {[%clk 0:01:45.5]} 24... Be6 {[%clk 0:01:14.6]}
25. Ne2 {[%clk 0:01:38.6]} 25... Ng4 {[%clk 0:01:01.2]} 26. Qxa7 {[%clk
0:01:32]} 26... Be5 {[%clk 0:00:32.8]} 27. Bxe5 {[%clk 0:01:26.6]} 27... dxe5
{[%clk 0:00:32.6]} 28. Kg1 {[%clk 0:01:15.3]} 28... Rd2 {[%clk 0:00:26.9]} 29.
Rce1 {[%clk 0:01:12.2]} 29... Nf6 {[%clk 0:00:23.8]} 30. Qe3 {[%clk 0:01:12]}
30... Red8 {[%clk 0:00:22]} 31. Ng3 {[%clk 0:01:12.2]} 31... Qh4 {[%clk
0:00:20.1]} 32. Rf2 {[%clk 0:01:09.5]} 32... Rxf2 {[%clk 0:00:18.6]} 33. Qxf2
{[%clk 0:01:10.4]} 33... Rd4 {[%clk 0:00:16.8]} 34. a4 {[%clk 0:01:01.9]} 34...
Nh5 {[%clk 0:00:15.8]} 35. Nxh5 {[%clk 0:01:01.1]} 35... Qxh5 {[%clk 0:00:16.7]}
36. a5 {[%clk 0:01:01.1]} 36... Qh8 {[%clk 0:00:12]} 37. Qg3 {[%clk 0:00:52.8]}
37... Qg7 {[%clk 0:00:07.5]} 38. a6 {[%clk 0:00:51.3]} 38... Rd8 {[%clk
0:00:07.1]} 39. Qc3 {[%clk 0:00:43.4]} 39... f6 {[%clk 0:00:06]} 40. Bd3 {[%clk
0:00:40.4]} 40... Qf8 {[%clk 0:00:06.1]} 41. Ra1 {[%clk 0:00:39.7]} 41... Ra8
{[%clk 0:00:05]} 42. b4 {[%clk 0:00:40.1]} 42... Qc8 {[%clk 0:00:03.8]} 43. c5
{[%clk 0:00:34.3]} 43... Kf7 {[%clk 0:00:04.4]} 44. Bc4 {[%clk 0:00:33.9]} 44...
Ra7 {[%clk 0:00:02.2]} 45. Kh2 {[%clk 0:00:32.5]} 45... Bxc4 {[%clk 0:00:02]}
46. Qxc4+ {[%clk 0:00:33.4]} 46... Qe6 {[%clk 0:00:02.3]} 47. Qd3 {[%clk
0:00:31.5]} 47... Qc8 {[%clk 0:00:02]} 48. b5 {[%clk 0:00:30.9]} 48... cxb5
{[%clk 0:00:01.9]} 49. Qxb5 {[%clk 0:00:31.8]} 49... Qc7 {[%clk 0:00:02.3]} 50.
Qb6 {[%clk 0:00:31.4]} 50... f5 {[%clk 0:00:03]} 51. Qxc7 {[%clk 0:00:31.1]}
51... Rxc7 {[%clk 0:00:03.4]} 52. a7 {[%clk 0:00:32]} 1-0

[Event "*** Titled Tuesday Blitz"]
[Site "Chess.com"]
[Date "2021.02.02"]
[Round "9"]
[White "Cambek64"]
[Black "erdni1993"]
[Result "1-0"]
[WhiteElo "2315"]
[BlackElo "2447"]
[TimeControl "180+1"]
[EndTime "11:46:31 PST"]
[Termination "Cambek64 won by resignation"]

1. e4 {[%clk 0:02:58.4]} 1... c5 {[%clk 0:03:00.4]} 2. Nc3 {[%clk 0:02:55.8]}
2... e6 {[%clk 0:02:58.3]} 3. d3 {[%clk 0:02:55.7]} 3... b6 {[%clk 0:02:57.2]}
4. f4 {[%clk 0:02:56.1]} 4... Bb7 {[%clk 0:02:57.4]} 5. Nf3 {[%clk 0:02:56.4]}
5... d5 {[%clk 0:02:57.7]} 6. g3 {[%clk 0:02:56.6]} 6... dxe4 {[%clk 0:02:57.1]}
7. Nxe4 {[%clk 0:02:55.2]} 7... Nf6 {[%clk 0:02:38.5]} 8. Nxf6+ {[%clk
0:02:53.8]} 8... gxf6 {[%clk 0:02:38.2]} 9. Bg2 {[%clk 0:02:52.8]} 9... Nd7
{[%clk 0:02:38.7]} 10. O-O {[%clk 0:02:49.9]} 10... Qc7 {[%clk 0:02:38.5]} 11.
a4 {[%clk 0:02:47.2]} 11... Bc6 {[%clk 0:02:29.9]} 12. a5 {[%clk 0:02:44.8]}
12... b5 {[%clk 0:02:30]} 13. Be3 {[%clk 0:02:42.2]} 13... a6 {[%clk 0:02:26.8]}
14. d4 {[%clk 0:02:39.9]} 14... c4 {[%clk 0:02:23.2]} 15. f5 {[%clk 0:02:36.5]}
15... Qb7 {[%clk 0:02:01.7]} 16. fxe6 {[%clk 0:02:35.4]} 16... fxe6 {[%clk
0:02:02.6]} 17. Nh4 {[%clk 0:02:31]} 17... Bxg2 {[%clk 0:02:01.7]} 18. Qh5+
{[%clk 0:02:29.1]} 18... Kd8 {[%clk 0:01:57.5]} 19. Nxg2 {[%clk 0:02:29.6]}
19... Bd6 {[%clk 0:01:50.9]} 20. Bf4 {[%clk 0:02:26.7]} 20... Qc6 {[%clk
0:01:14.2]} 21. Rae1 {[%clk 0:02:22.8]} 21... Re8 {[%clk 0:01:12.3]} 22. Bxd6
{[%clk 0:02:07.8]} 22... Qxd6 {[%clk 0:01:12.2]} 23. c3 {[%clk 0:02:04.5]} 23...
Kc7 {[%clk 0:01:12]} 24. Nf4 {[%clk 0:02:03.3]} 24... e5 {[%clk 0:01:08.4]} 25.
dxe5 {[%clk 0:02:00.1]} 25... Rxe5 {[%clk 0:01:08.1]} 26. Qxh7 {[%clk
0:01:38.1]} 26... Rae8 {[%clk 0:00:58.3]} 27. Rd1 {[%clk 0:01:15.5]} 27... Qc5+
{[%clk 0:00:56.1]} 28. Kh1 {[%clk 0:01:14.8]} 28... Qc6+ {[%clk 0:00:55.7]} 29.
Kg1 {[%clk 0:01:11.1]} 29... R8e7 {[%clk 0:00:50.8]} 30. Qh3 {[%clk 0:01:07.4]}
30... Qc5+ {[%clk 0:00:19.5]} 31. Kh1 {[%clk 0:01:06.3]} 31... Qc6+ {[%clk
0:00:20]} 32. Qg2 {[%clk 0:01:06.4]} 32... Qxg2+ {[%clk 0:00:19.5]} 33. Kxg2
{[%clk 0:01:06.2]} 33... Kc6 {[%clk 0:00:16.9]} 34. h4 {[%clk 0:01:03.3]} 34...
Re3 {[%clk 0:00:16.7]} 35. Rf3 {[%clk 0:01:03]} 35... Rxf3 {[%clk 0:00:16.6]}
36. Kxf3 {[%clk 0:01:02.1]} 36... Ne5+ {[%clk 0:00:17.5]} 37. Kg2 {[%clk
0:00:59.5]} 37... Ng4 {[%clk 0:00:17.6]} 38. Rd8 {[%clk 0:00:56.5]} 38... Ne3+
{[%clk 0:00:17]} 39. Kf3 {[%clk 0:00:55.3]} 39... Nf5 {[%clk 0:00:17.3]} 40. Rb8
{[%clk 0:00:53.6]} 40... Re3+ {[%clk 0:00:16.4]} 41. Kg4 {[%clk 0:00:52.4]}
41... Nh6+ {[%clk 0:00:16.4]} 42. Kh5 {[%clk 0:00:51.6]} 42... Nf5 {[%clk
0:00:16.9]} 43. g4 {[%clk 0:00:51.5]} 43... Ne7 {[%clk 0:00:17.1]} 44. Rb6+
{[%clk 0:00:49.7]} 44... Kd7 {[%clk 0:00:17.4]} 45. Rxf6 {[%clk 0:00:45.2]}
45... Nc6 {[%clk 0:00:16.3]} 46. g5 {[%clk 0:00:42.2]} 46... Ne5 {[%clk
0:00:16.4]} 47. Rxa6 {[%clk 0:00:39.3]} 47... Rg3 {[%clk 0:00:16.5]} 48. Rf6
{[%clk 0:00:35.4]} 48... Nf3 {[%clk 0:00:16.6]} 49. Ne2 {[%clk 0:00:30.7]} 49...
Rh3 {[%clk 0:00:14.6]} 50. Kg4 {[%clk 0:00:30.5]} 1-0